bitfinex/quotes_ETHUSD_20251201
["timestamp","ask_amount","ask_price","bid_price","bid_amount"]
[1764629040617,0.3708,2809.6,2809.5,4.2849463]
[1764629042429,0.3708,2809.6,2809.5,0.72559411]
[1764629042597,0.8374,2809.6,2809.5,4.2849463]
[1764629042924,0.66094912,2809.8,2809.5,4.7804463]
[1764629043524,5.7500876,2810.0,2809.5,4.7804463]
[1764629043525,0.1881,2810.9,2809.7,0.4955]
[1764629043723,0.1881,2810.9,2810.1,0.1832]
[1764629044021,0.54725876,2810.8,2810.1,0.1832]
[1764629044336,5.82974636,2810.8,2810.2,1.06956256]
[1764629044627,0.4676,2810.7,2810.4,0.72559411]
[1764629044999,0.3708,2810.5,2810.4,0.72559411]
[1764629046201,0.4676,2810.7,2810.4,1.22109411]
[1764629046514,0.64854464,2810.7,2810.4,4.77920143]
[1764629046716,0.482,2810.5,2810.4,4.28370143]
[1764629047523,0.8385,2810.5,2810.4,4.28370143]
[1764629047722,0.482,2810.5,2810.4,4.28370143]
[1764629048829,0.002,2811.0,2810.4,8.33741378]
[1764629049028,0.482,2810.5,2810.3,0.72559411]
[1764629049235,0.482,2810.5,2810.3,7.84223451]
[1764629049436,0.1881,2810.9,2810.4,1.06956637]
[1764629049627,0.4676,2810.7,2810.4,1.06956637]
[1764629049827,0.3708,2810.5,2810.4,1.06956637]
[1764629050928,0.58290876,2810.8,2810.4,5.84887283]
[1764629051236,0.3708,2810.5,2810.4,4.28380646]
[1764629051441,0.3708,2810.5,2810.4,5.35337283]
[1764629051845,0.3708,2810.5,2810.4,4.28380646]
[1764629052040,0.8269,2810.5,2810.3,0.58290876]
[1764629052259,0.4561,2810.5,2810.2,3.55836249]
[1764629052401,0.0038,2810.3,2810.2,3.55836249]
[1764629052607,0.0038,2810.3,2810.1,1.0696312]
[1764629052940,0.3784,2810.2,2810.0,3.55862266]
[1764629053254,0.0076,2810.1,2809.9,3.55879272]
[1764629053404,0.3747,2810.0,2809.9,3.55879272]
[1764629054808,0.3747,2810.0,2809.8,3.55886524]
[1764629055415,0.0112,2809.9,2809.8,3.55886524]
[1764629057940,0.0112,2809.9,2809.7,4.28469294]
[1764629058141,0.371,2809.8,2809.7,4.28469294]
[1764629058879,0.4561,2810.1,2809.7,4.77369294]
[1764629059234,0.4561,2810.1,2809.7,4.28469294]
[1764629059235,0.3822,2809.8,2809.7,4.28469294]
[1764629061963,0.3822,2809.8,2809.6,0.72559411]
[1764629061964,0.8351,2809.8,2809.6,0.72559411]
[1764629062968,0.8351,2809.8,2809.6,4.28474457]
[1764629063170,0.0045,2809.7,2809.4,1.63588678]
[1764629063386,0.0082,2809.5,2809.4,1.06988678]
[1764629063668,5.86536636,2809.5,2809.1,0.72559411]
[1764629063869,5.86536636,2809.5,2808.8,3.56117582]
[1764629063870,6.31326636,2809.5,2808.8,3.56117582]
[1764629064061,6.31326636,2809.5,2808.9,0.72559411]
[1764629064062,0.4561,2809.4,2808.9,0.72559411]
[1764629064256,0.4561,2809.4,2808.8,3.56117582]
[1764629064458,0.5623,2808.9,2808.8,0.001]
[1764629064658,1.0157,2808.9,2808.8,0.001]
[1764629065381,9.85830009,2808.9,2808.8,0.001]
[1764629065967,9.95800419,2808.9,2808.8,0.001]
[1764629066137,11.36640354,2808.9,2808.8,0.001]
[1764629067569,17.05439514,2808.9,2808.8,0.001]
[1764629067971,17.77998925,2808.9,2808.8,0.001]
[1764629068180,24.90021423,2808.9,2808.5,0.001]
[1764629068363,6.78207546,2808.6,2808.5,0.001]
[1764629068542,8.14445242,2808.6,2808.5,0.001]
[1764629068742,12.16104519,2808.6,2808.5,0.001]
[1764629069139,0.36398975,2808.3,2808.2,0.001]
[1764629069342,12.02775906,2808.3,2808.2,0.001]
[1764629069554,7.20137146,2808.3,2808.2,0.001]
[1764629069854,7.96205901,2808.3,2808.2,0.001]
[1764629070265,13.24454661,2808.3,2808.2,0.001]
[1764629070975,16.80541973,2808.3,2808.2,0.001]
[1764629071579,17.21092373,2808.3,2808.2,0.001]
[1764629072446,0.36398975,2808.1,2808.0,0.001]
[1764629072646,6.94627146,2808.1,2808.0,0.001]
[1764629072848,12.68265906,2808.1,2808.0,0.001]
[1764629073048,16.2437858,2808.1,2808.0,0.001]
[1764629078351,11.53775847,2808.1,2808.0,0.001]
[1764629078553,0.405504,2808.0,2807.9,0.001]
[1764629078884,0.76949375,2807.9,2807.6,0.001]
[1764629079093,0.76949375,2807.7,2807.6,0.001]
[1764629079254,7.16513762,2807.7,2807.6,0.001]
[1764629079450,8.39895138,2807.7,2807.6,0.001]
[1764629080887,11.96058545,2807.7,2807.6,0.001]
[1764629081849,0.405504,2807.6,2806.5,0.1962]
[1764629082052,1.25579375,2807.6,2806.5,0.1962]
[1764629082282,3.12978717,2807.6,2806.5,0.92179411]
[1764629082465,3.12978717,2807.6,2806.5,1.41049411]
[1764629083074,6.6915481,2807.6,2806.6,0.4887]
[1764629083968,7.41714221,2807.6,2806.6,0.4887]
[1764629084484,14.54066407,2807.6,2806.6,0.4887]
[1764629084657,5.81743362,2806.9,2806.6,0.4887]
[1764629085057,9.3800828,2806.9,2806.8,0.4568]
[1764629085281,9.01609305,2806.9,2806.8,0.4568]
[1764629085485,10.33054495,2806.9,2806.8,0.4568]
[1764629086059,10.70164495,2806.9,2806.5,0.1962]
[1764629086270,0.36398975,2806.7,2806.5,0.1962]
[1764629086670,0.36398975,2806.7,2806.6,0.4568]
[1764629087483,3.9268928,2806.7,2806.6,0.4568]
[1764629087688,0.36398975,2806.7,2806.6,0.4568]
[1764629088280,0.36398975,2806.7,2806.2,0.4887]
[1764629088281,0.19940821,2806.5,2806.2,0.4887]
[1764629088885,0.19940821,2806.5,2806.4,0.4568]
[1764629089291,5.45344387,2806.6,2806.4,0.9455]
[1764629089591,5.45344387,2806.6,2806.5,0.4568]
[1764629090481,9.01647387,2806.6,2806.5,0.4568]
[1764629091274,10.42244295,2806.6,2806.5,0.4568]
[1764629093397,10.42244295,2806.6,2806.5,0.4578]
[1764629095774,11.90344387,2806.9,2806.5,4.50961279]
[1764629095985,11.90344387,2806.9,2806.8,0.4568]
[1764629096183,11.90344387,2806.9,2806.5,0.001]
[1764629096184,0.0997041,2806.6,2806.5,0.001]
[1764629096389,5.55314797,2806.6,2806.5,0.001]
[1764629096693,5.45344387,2806.6,2806.5,0.4578]
[1764629097097,5.45344387,2806.7,2806.5,0.4578]
[1764629097275,0.36398975,2806.6,2806.5,0.4578]
[1764629099402,10.97407396,2806.7,2806.5,0.4578]
[1764629099590,10.97407396,2806.7,2806.6,0.4568]
[1764629100573,7.41112292,2806.7,2806.6,0.4568]
[1764629101074,5.45344387,2806.7,2806.6,0.9455]
[1764629101601,5.45344387,2807.3,2806.6,8.07154198]
[1764629101904,0.566,2807.5,2807.0,0.197]
[1764629102201,11.90344387,2807.6,2807.1,0.4887]
[1764629102405,11.90344387,2807.6,2807.5,0.6538]
[1764629102773,11.90344387,2807.6,2807.5,1.1425]
[1764629103707,11.90344387,2807.6,2807.5,4.7043878]
[1764629103908,5.45544387,2808.2,2807.5,9.09292796]
[1764629104093,5.45544387,2808.2,2808.1,0.6308]
[1764629104475,5.45544387,2808.2,2808.1,1.1195]
[1764629105174,0.002,2808.2,2808.1,1.1195]
[1764629106702,0.002,2808.2,2808.1,4.68062674]
[1764629109309,0.002,2808.2,2808.1,1.1195]
[1764629110104,0.002,2808.2,2808.1,4.68062674]
[1764629112906,5.45544387,2808.5,2808.1,9.12253571]
[1764629112907,0.002,2808.5,2808.1,9.12253571]
[1764629113105,0.002,2808.5,2808.4,0.4989]
[1764629113305,0.002,2808.5,2808.4,0.9529]
[1764629114899,0.002,2808.5,2808.4,4.51364633]
[1764629115094,0.002,2808.5,2808.4,5.45025725]
[1764629118821,0.002,2809.8,2808.4,13.29734402]
[1764629119003,0.002,2809.8,2809.7,0.4989]
[1764629119313,0.002,2809.8,2809.7,4.78359294]
[1764629119514,0.002,2809.8,2809.7,5.23759294]
[1764629119715,0.002,2809.8,2809.7,6.19287431]
[1764629123582,0.002,2809.8,2809.7,1.22449411]
[1764629123791,0.844,2809.8,2809.1,4.03341544]
[1764629124116,0.4767041,2809.8,2808.5,4.01461954]
[1764629124294,0.466,2809.1,2808.6,0.566]
[1764629124711,0.376,2809.0,2808.5,3.56061954]
[1764629124908,0.466,2809.1,2808.5,3.56061954]
[1764629125086,0.376,2809.3,2808.9,0.4989]
[1764629125612,3.55948545,2809.4,2808.9,0.4989]
[1764629126004,0.4736,2809.4,2808.9,0.4989]
[1764629126315,4.03309318,2809.4,2808.9,0.4989]
[1764629126517,0.4736,2809.4,2808.9,0.4989]
[1764629126816,0.4736,2809.3,2808.9,0.4989]
[1764629127017,0.4736,2809.4,2808.9,4.05899911]
[1764629127339,1.08958386,2809.7,2809.0,0.454]
[1764629127686,1.08958386,2809.7,2809.1,0.19]
[1764629127687,4.64870262,2809.7,2809.1,0.19]
[1764629127886,8.68142138,2809.7,2809.1,0.19]
[1764629128421,8.20782138,2809.7,2809.1,0.19]
[1764629128719,0.4736,2809.6,2809.0,0.454]
[1764629128900,3.55935219,2809.5,2809.0,0.454]
[1764629129521,4.03295219,2809.5,2809.0,0.454]
[1764629129891,0.4736,2809.5,2809.0,0.454]
[1764629130093,4.38026,2809.6,2808.9,3.56008648]
[1764629130094,0.4552,2809.4,2808.9,3.56008648]
[1764629130293,0.4552,2809.4,2808.8,3.56121328]
[1764629130492,0.938746,2809.4,2808.8,4.04861328]
[1764629130892,0.938746,2809.4,2808.8,0.001]
[1764629130893,0.3867,2808.9,2808.8,0.001]
[1764629131121,0.4552,2809.3,2808.8,0.001]
[1764629131430,0.4552,2809.3,2808.8,0.4893]
[1764629131614,0.4552,2809.3,2808.8,0.9767]
[1764629132710,1.21260806,2809.3,2808.8,4.53690179]
[1764629133110,0.4552,2809.2,2808.8,4.04950179]
[1764629133314,0.3867,2808.9,2808.8,3.56120179]
[1764629133630,0.75740806,2809.3,2808.9,0.4874]
[1764629134719,0.002,2809.8,2809.2,0.6738]
[1764629134906,0.002,2809.8,2809.7,0.4883]
[1764629138735,0.002,2809.8,2809.6,3.55914014]
[1764629138935,0.483,2809.8,2809.6,3.55914014]
[1764629139432,0.002,2809.8,2809.5,3.55935219]
[1764629139934,0.002,2809.8,2809.7,0.4883]
[1764629141234,0.002,2809.8,2809.7,0.9691]
[1764629141825,0.002,2809.8,2809.7,4.04739883]
[1764629142416,0.002,2809.8,2809.7,6.06254804]
[1764629142621,0.002,2809.8,2809.7,5.25379294]
[1764629147439,0.002,2809.8,2809.7,5.81879294]
[1764629150824,0.4895,2809.8,2809.7,0.72559411]
[1764629151027,0.4895,2809.8,2809.7,4.28469294]
[1764629151452,0.002,2809.8,2809.7,7.01288827]
[1764629151648,0.002,2809.8,2809.7,7.50238827]
[1764629152347,0.002,2809.8,2809.7,6.53088427]
[1764629152552,0.002,2809.8,2809.7,7.09688427]
[1764629153251,0.002,2809.8,2809.7,7.50238827]
[1764629154653,3.5569598,2811.4,2809.7,7.50238827]
[1764629154654,0.23072252,2811.6,2810.1,0.405504]
[1764629154828,0.23072252,2811.6,2811.5,4.77391431]
[1764629155034,0.23072252,2811.6,2811.5,6.18446047]
[1764629155350,0.23072252,2811.6,2811.5,5.82171431]
[1764629156865,0.1821,2813.0,2811.5,5.82171431]
[1764629156866,0.1821,2813.5,2811.6,1.13109811]
[1764629157028,0.1821,2813.5,2812.3,0.4915]
[1764629157227,0.1821,2813.5,2812.4,1.647404]
[1764629157228,0.6435,2813.5,2812.4,1.647404]
[1764629157440,0.6435,2813.5,2812.5,0.4808]
[1764629157657,0.4614,2813.4,2812.5,2.27489384]
[1764629158035,0.4614,2813.4,2812.6,0.4808]
[1764629158238,0.4614,2813.4,2812.4,0.1931]
[1764629158443,0.4614,2813.4,2812.6,0.568]
[1764629158658,0.4614,2813.4,2812.5,0.568]
[1764629158839,0.4614,2813.4,2812.2,0.1931]
[1764629158840,7.10908896,2813.3,2812.2,0.1931]
[1764629159041,0.7570489,2813.2,2812.3,0.568]
[1764629159245,0.7570489,2813.2,2812.1,4.03677509]
[1764629159246,1.2184489,2813.2,2812.1,4.03677509]
[1764629159433,0.7570489,2813.2,2812.2,0.568]
[1764629159641,0.4614,2813.4,2812.3,0.568]
[1764629159879,0.0997041,2814.4,2813.3,0.679]
[1764629160027,0.4614,2814.6,2813.4,0.973504]
[1764629160227,0.4614,2814.7,2813.5,0.57]
[1764629160433,0.4614,2814.7,2813.6,0.57]
[1764629160654,0.4614,2814.7,2813.7,0.4808]
[1764629160850,4.01418978,2814.7,2813.7,0.57]
[1764629161143,0.54608975,2814.8,2813.4,0.72559411]
[1764629161144,0.45602795,2814.6,2813.4,0.72559411]
[1764629161340,0.4614,2814.7,2813.5,0.4808]
[1764629161949,0.4614,2814.7,2813.5,0.45602795]
[1764629162266,0.405504,2814.5,2813.3,0.7575]
[1764629162640,0.3935,2813.4,2813.1,0.57]
[1764629162840,0.3935,2813.2,2812.8,0.57]
[1764629163045,0.3935,2813.2,2812.7,0.57]
[1764629163438,0.8542,2813.2,2812.7,0.57]
[1764629163649,0.4614,2813.5,2812.6,0.57]
[1764629163846,0.1821,2813.6,2812.6,0.57]
[1764629164069,0.4614,2813.5,2812.6,0.57]
[1764629164272,0.405504,2814.4,2812.6,0.57]
[1764629164273,0.4614,2814.5,2813.5,0.6846]
[1764629164578,0.4614,2814.4,2813.5,0.6846]
[1764629165072,4.01456717,2814.4,2813.5,1.98119411]
[1764629165277,0.75676005,2814.3,2813.5,5.53548122]
[1764629165454,0.4614,2814.2,2813.4,3.55437785]
[1764629165655,0.002,2813.8,2813.3,3.55445856]
[1764629165977,0.002,2813.8,2813.3,0.72559411]
[1764629166144,0.6435,2813.7,2813.2,3.55464459]
[1764629166561,0.002,2813.8,2813.6,0.4915]
[1764629166848,0.8542,2813.7,2813.1,3.55477856]
[1764629167164,0.8542,2813.7,2813.2,7.83487477]
[1764629167367,0.8542,2813.7,2813.2,4.28020394]
[1764629168065,0.4607,2813.6,2813.0,4.28045938]
[1764629168266,0.4607,2813.6,2812.5,7.1111111]
[1764629168267,0.3896,2813.1,2812.5,7.1111111]
[1764629168468,0.3896,2813.1,2812.6,0.571]
[1764629168875,0.3896,2813.1,2812.6,1.29659411]
[1764629169056,0.3896,2813.1,2812.7,3.55530273]
[1764629169256,0.851,2813.1,2812.7,3.55530273]
[1764629169583,0.851,2813.1,2812.6,1.29659411]
[1764629169584,0.851,2813.1,2812.6,0.571]
[1764629170097,0.002,2813.8,2813.1,0.405504]
[1764629170251,0.002,2813.8,2813.7,0.6846]
[1764629170454,0.002,2813.8,2813.7,0.572]
[1764629170682,0.4895,2813.8,2813.2,0.6739]
[1764629170884,0.4895,2813.8,2813.5,0.572]
[1764629171084,0.002,2813.8,2813.6,0.72559411]
[1764629172894,0.002,2813.8,2813.7,0.4615]
[1764629173055,0.002,2813.8,2813.7,5.19563327]
[1764629173387,0.002,2813.8,2813.7,5.31313327]
[1764629175168,0.002,2813.8,2813.7,4.85163327]
[1764629175878,0.002,2813.8,2813.7,4.27963327]
[1764629176090,0.002,2813.8,2813.7,4.85163327]
[1764629176688,0.002,2813.8,2813.7,0.72559411]
[1764629176854,0.002,2813.8,2813.7,4.85163327]
[1764629177688,0.002,2813.8,2813.7,4.27963327]
[1764629178461,0.4284,2814.4,2813.8,0.72559411]
[1764629178774,0.6788,2813.8,2813.4,0.72559411]
[1764629178973,0.3105,2813.7,2813.4,0.72559411]
[1764629179173,0.3105,2813.7,2813.6,0.72559411]
[1764629179693,3.5531704,2814.4,2813.6,0.72559411]
[1764629180572,0.4724,2814.3,2813.6,0.72559411]
[1764629180772,0.40255704,2814.2,2813.6,0.72559411]
[1764629181182,0.87495704,2814.2,2813.6,0.72559411]
[1764629181390,0.87495704,2814.2,2813.6,4.27963755]
[1764629181578,0.3302,2813.7,2813.6,4.27963755]
[1764629181775,7.10530054,2814.8,2813.6,7.83380303]
[1764629181976,0.5721041,2814.7,2813.6,0.72559411]
[1764629182177,0.3302,2813.7,2813.6,4.27967236]
[1764629182906,0.3302,2813.7,2813.6,0.72559411]
[1764629183080,0.8012,2813.7,2813.6,0.72559411]
[1764629183279,0.3302,2813.7,2813.6,0.72559411]
[1764629183476,0.3302,2813.7,2813.6,4.27975959]
[1764629184211,0.002,2814.4,2813.8,0.4615]
[1764629184509,0.002,2814.4,2814.3,0.4615]
[1764629184720,0.002,2814.4,2814.3,1.0335]
[1764629185011,0.002,2814.4,2814.3,0.4615]
[1764629185196,0.002,2814.4,2814.0,0.572]
[1764629185376,0.002,2814.4,2814.3,4.74037556]
[1764629186200,0.002,2814.4,2814.3,4.27887556]
[1764629186573,0.002,2814.4,2814.3,0.72559411]
[1764629187187,0.002,2814.4,2814.3,4.27887556]
[1764629189598,0.4744,2814.4,2814.3,0.72559411]
[1764629190304,0.4744,2814.4,2813.9,0.572]
[1764629190479,0.40274332,2814.3,2813.9,1.29759411]
[1764629190680,0.40274332,2814.3,2813.9,0.72559411]
[1764629190912,0.4653,2814.2,2813.9,0.72559411]
[1764629192083,0.4653,2814.2,2813.9,3.55375739]
[1764629192485,0.002,2814.4,2813.9,7.57604394]
[1764629193015,0.4173,2814.7,2813.9,7.57604394]
[1764629193215,3.97007903,2814.7,2813.9,7.57604394]
[1764629193386,0.3970079,2814.6,2813.9,7.57604394]
[1764629193586,0.4173,2814.7,2813.9,7.57604394]
[1764629194721,3.970086,2814.7,2813.9,7.10754394]
[1764629195082,0.4653,2814.6,2813.9,3.55375739]
[1764629195286,0.4653,2814.6,2813.9,7.57604394]
[1764629196399,0.40181168,2814.5,2813.9,7.57604394]
[1764629196797,0.40181168,2814.5,2814.0,0.72559411]
[1764629196998,0.4653,2814.5,2814.0,0.72559411]
[1764629198186,0.4653,2814.5,2814.0,3.55360951]
[1764629198387,3.55274651,2814.8,2814.0,3.55360951]
[1764629198608,0.4653,2814.7,2814.0,7.10726978]
[1764629198823,0.4653,2814.7,2814.0,3.55360951]
[1764629200291,4.38218287,2814.7,2814.0,0.72559411]
[1764629200495,0.79348352,2814.6,2814.0,0.72559411]
[1764629200694,1.25878352,2814.6,2814.0,0.72559411]
[1764629200892,0.4653,2814.5,2813.8,4.85048044]
[1764629201294,0.4653,2814.5,2813.8,8.40439329]
[1764629201492,0.4811567,2814.5,2813.8,8.86349329]
[1764629201921,0.4811567,2814.5,2813.9,0.001]
[1764629202122,0.4803,2814.7,2813.9,0.4601]
[1764629202508,0.4803,2814.7,2814.0,7.10732054]
[1764629202704,0.002,2814.7,2814.1,0.1933]
[1764629202907,0.002,2814.7,2814.1,0.6524]
[1764629203204,0.002,2814.7,2814.1,1.78383808]
[1764629203409,0.002,2814.7,2814.2,0.4591]
[1764629204422,0.002,2814.7,2814.3,3.55328145]
[1764629204723,0.002,2814.7,2814.3,7.1065629]
[1764629205426,0.002,2814.7,2814.3,7.5656629]
[1764629206125,0.002,2814.7,2814.3,3.55328145]
[1764629206528,0.002,2814.7,2814.3,0.72559411]
[1764629207235,0.002,2814.7,2814.4,0.4591]
[1764629207405,0.002,2814.7,2814.3,0.72559411]
[1764629207406,0.002,2814.7,2814.3,1.18469411]
[1764629207605,0.4803,2814.7,2814.3,0.72559411]
[1764629207806,0.002,2814.7,2814.3,0.72559411]
[1764629208808,0.002,2814.7,2814.4,3.5531552]
[1764629209107,0.4803,2814.7,2814.4,3.5531552]
[1764629209512,0.002,2814.7,2814.4,3.5531552]
[1764629209948,0.4803,2814.7,2814.4,3.5531552]
[1764629210604,0.4803,2814.7,2814.3,3.5532433]
[1764629211606,0.002,2814.7,2814.3,7.10652475]
[1764629211802,0.002,2814.7,2814.4,0.4591]
[1764629212002,0.002,2814.7,2814.6,0.4551]
[1764629212805,0.002,2814.7,2814.3,7.56562475]
[1764629213534,0.002,2814.7,2814.3,7.10652475]
[1764629213711,0.002,2814.7,2814.4,0.4591]
[1764629213908,0.002,2814.7,2814.6,0.860604]
[1764629214139,0.002,2814.7,2814.6,1.0261]
[1764629214437,0.002,2814.7,2814.6,1.4852]
[1764629215913,0.002,2814.7,2814.6,5.03810272]
[1764629218238,0.002,2814.7,2814.6,4.46710272]
[1764629218438,0.002,2814.7,2814.6,5.03710272]
[1764629220236,0.002,2814.7,2814.6,4.00800272]
[1764629220424,0.002,2814.7,2814.6,5.30359683]
[1764629221144,0.002,2814.7,2814.6,4.84849683]
[1764629221348,0.002,2814.7,2814.6,5.30359683]
[1764629223432,0.002,2814.7,2814.6,5.30359683]
[1764629224023,0.073,2814.7,2814.1,0.1933]
[1764629224352,0.071,2814.2,2814.0,3.5535837]
[1764629224548,0.4742,2814.6,2813.9,4.28032689]
[1764629224737,0.075,2814.0,2813.9,4.28032689]
[1764629225247,0.075,2814.0,2813.9,3.55473278]
[1764629225453,0.075,2814.0,2813.9,4.28032689]
[1764629230647,0.5452,2814.0,2813.9,4.28032689]
[1764629231432,0.535,2814.0,2813.9,4.28032689]
[1764629232126,0.535,2814.0,2813.9,0.72659411]
[1764629233458,0.535,2814.0,2813.9,0.001]
[1764629234234,0.94384229,2814.0,2813.9,0.001]
[1764629234737,0.535,2814.0,2813.9,0.001]
[1764629235258,0.46,2814.3,2813.9,0.001]
[1764629235464,0.0891,2814.0,2813.9,0.001]
[1764629235831,0.5454,2814.0,2813.9,0.001]
[1764629236363,0.0891,2814.0,2813.9,0.001]
[1764629237864,0.1925,2815.1,2813.9,0.9108]
[1764629238069,0.1925,2815.1,2814.6,0.4583]
[1764629238660,0.6525,2815.1,2814.6,4.73679683]
[1764629238869,0.6525,2815.1,2814.6,4.27849683]
[1764629239162,0.0911,2814.7,2814.6,3.55290272]
[1764629241169,0.0911,2814.7,2814.5,3.55302389]
[1764629241664,0.0009,2814.6,2814.5,3.55302389]
[1764629242235,0.4609,2814.6,2814.5,3.55302389]
[1764629242436,0.4609,2814.6,2814.2,3.55330718]
[1764629242662,0.002,2814.7,2814.5,0.1833]
[1764629242865,0.002,2814.7,2814.6,0.9098]
[1764629243069,0.002,2814.7,2814.6,4.46270272]
[1764629243260,0.002,2814.7,2814.6,4.01120272]
[1764629243538,0.002,2814.7,2814.6,4.46270272]
[1764629245367,0.002,2814.7,2814.6,4.01120272]
[1764629245598,0.002,2814.7,2814.6,3.55290272]
[1764629245599,0.0913,2814.7,2814.6,3.55290272]
[1764629245867,0.0913,2814.7,2814.4,3.55311659]
[1764629246068,0.5476,2814.7,2814.4,3.55311659]
[1764629246253,0.0046,2814.5,2814.4,4.2787107]
[1764629246653,0.4646,2814.5,2813.9,0.001]
[1764629246971,0.0054,2814.0,2813.9,0.001]
[1764629248538,0.4654,2814.0,2813.9,0.001]
[1764629248738,0.86728079,2814.0,2813.9,0.001]
[1764629249167,0.96698489,2814.0,2813.9,0.001]
[1764629249351,4.11876437,2814.0,2813.9,0.001]
[1764629249877,4.01906027,2814.0,2813.9,0.001]
[1764629250877,4.95305002,2814.0,2813.9,0.001]
[1764629251776,4.01906027,2814.0,2813.9,0.001]
[1764629252274,4.38305002,2814.0,2813.9,0.001]
[1764629252485,5.99456525,2814.0,2813.9,0.001]
[1764629252701,5.99456525,2814.0,2813.6,0.001]
[1764629252702,0.76949375,2813.7,2813.6,0.001]
[1764629252992,0.85349375,2813.7,2813.6,0.001]
[1764629253270,4.85833291,2813.7,2813.6,0.001]
[1764629253647,4.49434316,2813.7,2813.6,0.001]
[1764629253971,5.79043595,2813.7,2813.6,0.001]
[1764629254579,11.78774116,2814.1,2813.6,0.001]
[1764629254580,3.55251169,2815.0,2813.6,0.4601]
[1764629254776,0.1923,2815.3,2813.7,0.4591]
[1764629254777,0.1832,2814.5,2813.7,0.4591]
[1764629255293,3.5531552,2814.4,2813.7,1.18469411]
[1764629255655,3.5531552,2814.4,2813.7,0.4591]
[1764629255860,0.4508,2814.3,2813.6,0.72659411]
[1764629256160,0.4508,2814.3,2813.6,0.001]
[1764629256161,0.116,2813.8,2813.6,0.001]
[1764629256362,0.0012,2813.7,2813.6,0.001]
[1764629256567,0.571,2814.2,2813.6,0.001]
[1764629256568,1.0218,2814.2,2813.6,0.001]
[1764629256886,0.4508,2814.1,2813.6,0.001]
[1764629257382,0.2985,2813.7,2813.6,0.001]
[1764629257686,0.8695,2813.7,2813.6,0.001]
[1764629257875,1.3176,2813.7,2813.6,0.001]
[1764629258455,1.4173041,2813.7,2813.6,0.001]
[1764629259691,4.97134326,2813.7,2813.6,0.001]
[1764629259994,6.54946202,2813.7,2813.6,0.001]
[1764629262184,6.85526192,2813.7,2813.6,0.001]
[1764629262386,7.21925167,2813.7,2813.6,0.001]
[1764629265586,0.405504,2813.6,2813.4,0.001]
[1764629265793,9.04457325,2813.5,2813.4,0.001]
[1764629266088,12.59886505,2813.5,2813.4,0.001]
[1764629266269,13.05446505,2813.5,2813.4,0.001]
[1764629266591,13.45996905,2813.5,2813.4,0.001]
[1764629274088,19.90996905,2813.5,2813.4,0.001]
[1764629279980,7.58009811,2813.4,2813.3,0.001]
[1764629280182,11.28584141,2813.4,2813.3,0.001]
[1764629280902,14.84025955,2813.4,2813.3,0.001]
[1764629284013,13.97915555,2813.4,2813.3,0.001]
[1764629284214,14.54915555,2813.4,2813.3,0.001]
[1764629284711,14.95465955,2813.4,2813.3,0.001]
[1764629285282,14.84715955,2813.4,2813.3,0.4787]
[1764629286012,9.79765355,2813.4,2813.3,0.9525]
[1764629286182,7.019,2813.4,2813.3,0.9525]
[1764629290819,0.571,2813.6,2813.3,0.9525]
[1764629291024,0.571,2813.6,2813.5,0.4777]
[1764629291435,0.571,2813.6,2813.5,0.9639]
[1764629294699,0.002,2813.6,2813.5,0.9639]
[1764629294895,0.002,2813.6,2813.5,5.24378591]
[1764629295222,0.002,2813.6,2813.5,6.12370556]
[1764629295925,0.002,2813.6,2813.5,5.24378591]
[1764629296520,0.002,2813.6,2813.5,4.5181918]
[1764629298727,0.002,2813.9,2813.5,4.5181918]
[1764629298912,0.002,2813.9,2813.8,0.48]
[1764629300310,3.55578655,2813.9,2813.8,0.48]
[1764629300633,4.28138066,2813.9,2813.8,0.48]
[1764629301000,0.72559411,2813.8,2813.3,3.55549312]
[1764629301202,0.82529821,2813.8,2813.4,0.4862]
[1764629301525,0.569,2813.7,2813.4,0.4862]
[1764629302031,0.569,2813.7,2813.6,0.48]
[1764629303430,4.97344959,2813.7,2813.6,0.48]
[1764629303600,4.97344959,2813.7,2813.4,0.4862]
[1764629303601,8.62588875,2813.7,2813.3,0.001]
[1764629303807,5.07184959,2813.7,2813.3,0.4872]
[1764629304006,0.51715537,2813.6,2813.3,0.4872]
[1764629304205,1.24274948,2813.6,2813.3,0.001]
[1764629304705,7.47257335,2813.5,2813.3,0.001]
[1764629304906,6.08678654,2813.4,2813.3,0.001]
[1764629305106,8.0284585,2813.4,2813.3,0.001]
[1764629305300,8.39244825,2813.4,2813.3,0.001]
[1764629305518,7.93984825,2813.4,2813.3,0.001]
[1764629305938,8.5336666,2813.4,2813.3,0.001]
[1764629306536,12.08808474,2813.4,2813.3,0.001]
[1764629308536,14.01361188,2813.4,2813.3,0.001]
[1764629309044,20.46261188,2813.4,2813.3,0.001]
[1764629310840,20.46261188,2813.4,2813.1,0.001]
[1764629311133,20.46261188,2813.4,2812.8,0.001]
[1764629311134,0.76949375,2812.9,2812.8,0.001]
[1764629311337,9.44530743,2812.9,2812.8,0.001]
[1764629311542,9.92050743,2812.9,2812.8,0.001]
[1764629312038,10.41450743,2812.9,2812.8,0.001]
[1764629312243,17.90495817,2812.9,2812.8,0.001]
[1764629313033,21.46000811,2812.9,2812.8,0.001]
[1764629314142,21.46000811,2812.9,2811.5,0.001]
[1764629314143,1.23080221,2812.8,2811.5,0.001]
[1764629314311,8.22390221,2812.8,2811.5,0.001]
[1764629314509,10.7053494,2812.8,2811.5,0.001]
[1764629314944,14.26052573,2812.8,2811.6,0.493]
[1764629315321,13.94882173,2812.8,2812.2,0.493]
[1764629315518,14.91702173,2812.8,2811.5,0.001]
[1764629315718,15.32252573,2812.8,2811.5,0.494]
[1764629315920,22.5135453,2812.8,2811.7,0.493]